[Event "Top 12 Féminin 2026"]
[Site "Asnières-sur-Seine, France"]
[Date "2026.05.16"]
[Round "4.1"]
[White "Ushenina, Anna"]
[Black "Kosteniuk, Alexandra"]
[Result "1-0"]
[TimeControl "1h30 / 40 moves + 30m + 30sec/move"]
[WhiteTitle "GM"]
[BlackTitle "GM"]
[WhiteFideId "-"]
[BlackFideId "-"]
[WhiteElo "2420"]
[BlackElo "2491"]

1. d4 {[%clk 01:30:30]} {[%emt 19:08:58]} d5 {[%clk 01:30:49]} {[%emt
00:00:56]} 2. c4 {[%clk 01:31:08]} {[%emt 00:00:20]} e6 {[%clk 01:31:14]}
{[%emt 00:00:05]} 3. Nf3 {[%clk 01:31:13]} {[%emt 00:00:25]} c6 {[%clk
01:31:39]} {[%emt 00:00:05]} 4. g3 {[%clk 01:31:07]} {[%emt 00:00:35]} Nf6
{[%clk 01:32:00]} {[%emt 00:00:10]} 5. Bg2 {[%clk 01:31:11]} {[%emt 00:00:27]}
Be7 {[%clk 01:32:24]} {[%emt 00:00:05]} 6. O-O {[%clk 01:30:47]} {[%emt
00:00:53]} O-O {[%clk 01:32:50]} {[%emt 00:00:05]} 7. Nc3 {[%clk 01:30:54]}
{[%emt 00:00:23]} a5 {[%clk 01:33:09]} {[%emt 00:00:12]} 8. Bg5 {[%clk
01:31:05]} {[%emt 00:00:17]} dxc4 {[%clk 01:27:09]} {[%emt 00:06:31]} 9. Ne5
{[%clk 01:29:48]} {[%emt 00:01:47]} Nd5 {[%clk 01:26:56]} {[%emt 00:00:42]} 10.
Bxe7 {[%clk 01:27:47]} {[%emt 00:02:31]} Qxe7 {[%clk 01:26:53]} {[%emt
00:00:33]} 11. Nxc4 {[%clk 01:14:27]} {[%emt 00:13:50]} Nd7 {[%clk 01:26:12]}
{[%emt 00:01:10]} 12. Rc1 {[%clk 01:00:15]} {[%emt 00:14:43]} Rd8 {[%clk
01:23:50]} {[%emt 00:02:52]} 13. e4 {[%clk 00:46:45]} {[%emt 00:14:00]} N5b6
{[%clk 01:23:26]} {[%emt 00:00:55]} 14. Ne3 {[%clk 00:46:01]} {[%emt 00:01:13]}
e5 {[%clk 01:20:16]} {[%emt 00:03:40]} 15. d5 {[%clk 00:38:22]} {[%emt
00:08:09]} Nf6 {[%clk 01:20:21]} {[%emt 00:00:25]} 16. Re1 {[%clk 00:37:01]}
{[%emt 00:01:51]} h5 {[%clk 01:17:31]} {[%emt 00:03:20]} 17. a3 {[%clk
00:36:59]} {[%emt 00:00:33]} Ng4 {[%clk 01:13:36]} {[%emt 00:04:25]} 18. Qb3
{[%clk 00:35:49]} {[%emt 00:01:39]} Nd7 {[%clk 01:10:03]} {[%emt 00:04:02]} 19.
Nf5 {[%clk 00:27:28]} {[%emt 00:08:51]} Qc5 {[%clk 01:09:06]} {[%emt 00:01:27]}
20. Qc2 {[%clk 00:27:11]} {[%emt 00:00:48]} g6 {[%clk 01:07:56]} {[%emt
00:01:40]} 21. Nh4 {[%clk 00:24:26]} {[%emt 00:03:14]} Ngf6 {[%clk 00:56:43]}
{[%emt 00:11:43]} 22. Nf3 {[%clk 00:24:06]} {[%emt 00:00:50]} Re8 {[%clk
00:54:48]} {[%emt 00:02:26]} 23. Red1 {[%clk 00:22:45]} {[%emt 00:01:51]} Kg7
{[%clk 00:54:36]} {[%emt 00:00:41]} 24. Qe2 {[%clk 00:21:37]} {[%emt 00:01:39]}
Qa7 {[%clk 00:53:07]} {[%emt 00:02:00]} 25. b4 {[%clk 00:19:53]} {[%emt
00:02:14]} axb4 {[%clk 00:52:44]} {[%emt 00:00:53]} 26. axb4 {[%clk 00:20:21]}
{[%emt 00:00:01]} Qa3 {[%clk 00:42:54]} {[%emt 00:10:20]} 27. b5 {[%clk
00:17:47]} {[%emt 00:03:04]} cxd5 {[%clk 00:43:04]} {[%emt 00:00:20]} 28. Nxd5
{[%clk 00:17:51]} {[%emt 00:00:27]} Nxd5 {[%clk 00:41:43]} {[%emt 00:01:51]} 29.
exd5 {[%clk 00:18:19]} {[%emt 00:00:01]} e4 {[%clk 00:37:25]} {[%emt 00:04:47]}
30. h3 {[%clk 00:07:10]} {[%emt 00:11:40]} exf3 {[%clk 00:29:40]} {[%emt
00:08:15]} 31. Qxe8 {[%clk 00:07:31]} {[%emt 00:00:09]} Nf6 {[%clk 00:30:07]}
{[%emt 00:00:04]} 32. Qe1 {[%clk 00:07:31]} {[%emt 00:00:29]} fxg2 {[%clk
00:17:47]} {[%emt 00:12:50]} 33. Ra1 {[%clk 00:07:57]} {[%emt 00:00:05]} Qb3
{[%clk 00:17:44]} {[%emt 00:00:33]} 34. Rxa8 {[%clk 00:07:49]} {[%emt
00:00:38]} Bxh3 {[%clk 00:18:11]} {[%emt 00:00:03]} 35. Raa1 {[%clk 00:05:27]}
{[%emt 00:02:52]} Qxb5 {[%clk 00:13:45]} {[%emt 00:04:56]} 36. Qe5 {[%clk
00:05:18]} {[%emt 00:00:39]} Bf5 {[%clk 00:13:27]} {[%emt 00:00:49]} 37. Re1
{[%clk 00:05:04]} {[%emt 00:00:44]} h4 {[%clk 00:08:55]} {[%emt 00:05:01]} 38.
gxh4 {[%clk 00:03:24]} {[%emt 00:02:10]} Qxd5 {[%clk 00:08:13]} {[%emt
00:01:12]} 39. Qxd5 {[%clk 00:03:31]} {[%emt 00:00:23]} Nxd5 {[%clk 00:08:41]}
{[%emt 00:00:02]} 40. Kxg2 {[%clk 00:03:33]} {[%emt 00:00:28]} b5 {[%clk
00:09:00]} {[%emt 00:00:11]} 41. Ra5 {[%emt 00:06:54]} Bd3 {[%clk 00:05:46]} 42.
Kg3 {[%clk 00:29:55]} {[%emt 00:01:28]} Bc4 {[%clk 00:36:02]} {[%emt 00:00:14]}
43. Re8 {[%clk 00:26:48]} {[%emt 00:03:37]} Nf6 {[%clk 00:34:31]} {[%emt
00:02:01]} 44. Rd8 {[%clk 00:24:05]} {[%emt 00:03:13]} Ne4+ {[%clk 00:32:18]}
{[%emt 00:02:43]} 45. Kf3 {[%clk 00:24:00]} {[%emt 00:00:35]} Nc5 {[%clk
00:32:37]} {[%emt 00:00:11]} 46. Ra7 {[%clk 00:22:26]} {[%emt 00:02:04]} Kf6
{[%clk 00:31:38]} {[%emt 00:01:28]} 47. Rc8 {[%clk 00:19:56]} {[%emt 00:03:00]}
Ne6 {[%clk 00:29:08]} {[%emt 00:03:01]} 48. Ke4 {[%clk 00:19:42]} {[%emt
00:00:43]} Ng7 {[%clk 00:28:16]} {[%emt 00:01:22]} 49. Rc5 {[%clk 00:16:12]}
{[%emt 00:04:00]} Ne6 {[%clk 00:18:17]} {[%emt 00:10:29]} 50. Rc6 {[%clk
00:15:46]} {[%emt 00:00:57]} Bf1 {[%clk 00:17:09]} {[%emt 00:01:38]} 51. Rd6
{[%clk 00:07:49]} {[%emt 00:08:27]} Bc4 {[%clk 00:16:29]} {[%emt 00:01:09]} 52.
Rb6 {[%clk 00:06:48]} {[%emt 00:01:31]} Kg7 {[%clk 00:14:58]} {[%emt 00:02:01]}
53. f3 {[%clk 00:04:47]} {[%emt 00:02:31]} Nc5+ {[%clk 00:13:58]} {[%emt
00:01:31]} 54. Kf4 {[%clk 00:03:50]} {[%emt 00:01:27]} Kh6 {[%clk 00:10:38]}
{[%emt 00:03:50]} 55. Ra8 {[%clk 00:01:51]} {[%emt 00:02:29]} Kg7 {[%clk
00:08:07]} {[%emt 00:03:01]} 56. Rc8 {[%clk 00:01:47]} {[%emt 00:00:35]} Nd3+
{[%clk 00:07:51]} {[%emt 00:00:46]} 57. Ke4 {[%clk 00:01:31]} {[%emt 00:00:45]}
Ne1 {[%clk 00:08:07]} {[%emt 00:00:14]} 58. Rbb8 {[%clk 00:00:58]} {[%emt
00:01:03]} Kf6 {[%clk 00:08:07]} {[%emt 00:00:29]} 59. Rc5 {[%clk 00:00:51]}
{[%emt 00:00:37]} Bd3+ {[%clk 00:06:41]} {[%emt 00:01:57]} 60. Ke3 {[%clk
00:01:01]} {[%emt 00:00:20]} Bc4 {[%clk 00:07:00]} {[%emt 00:00:11]} 61. h5
{[%clk 00:00:43]} {[%emt 00:00:49]} gxh5 {[%clk 00:07:23]} {[%emt 00:00:06]} 62.
Rxh5 {[%clk 00:01:09]} {[%emt 00:00:04]} Nd3 {[%clk 00:07:43]} {[%emt
00:00:10]} 63. f4 {[%emt 00:01:42]} Ne1 {[%clk 00:07:00]} 64. Rb6+ {[%clk
00:00:50]} {[%emt 00:00:50]} Ke7 {[%clk 00:06:42]} {[%emt 00:00:48]} 65. Rhxb5
{[%clk 00:00:42]} {[%emt 00:00:39]} Bxb5 {[%clk 00:07:08]} {[%emt 00:00:04]} 66.
Rxb5 {[%clk 00:01:09]} {[%emt 00:00:02]} Ng2+ {[%clk 00:07:33]} {[%emt
00:00:04]} 67. Ke4 {[%clk 00:01:30]} {[%emt 00:00:10]} Nh4 {[%clk 00:07:58]}
{[%emt 00:00:05]} 68. f5 {[%clk 00:00:52]} {[%emt 00:01:08]} Kf6 {[%clk
00:08:24]} {[%emt 00:00:03]} 69. Rb1 {[%clk 00:00:49]} {[%emt 00:00:33]} 1-0

[Event "Top 12 Féminin 2026"]
[Site "Asnières-sur-Seine, France"]
[Date "2026.05.16"]
[Round "4.3"]
[White "Alexieva, Silvia"]
[Black "Cramling, Pia"]
[Result "0-1"]
[TimeControl "1h30 / 40 moves + 30m + 30sec/move"]
[WhiteTitle "IM"]
[BlackTitle "GM"]
[WhiteFideId "-"]
[BlackFideId "-"]
[WhiteElo "2197"]
[BlackElo "2384"]

1. d4 {[%clk 01:30:45]} {[%emt 00:00:15]} Nf6 {[%clk 01:30:42]} {[%emt
00:00:18]} 2. c4 {[%clk 01:30:57]} {[%emt 00:00:18]} e6 {[%clk 01:31:04]}
{[%emt 00:00:07]} 3. Bf4 {[%clk 01:30:54]} {[%emt 00:00:34]} Bb4+ {[%clk
01:30:59]} {[%emt 00:00:34]} 4. Nd2 {[%clk 01:31:14]} {[%emt 00:00:10]} c5
{[%clk 01:30:45]} {[%emt 00:00:44]} 5. dxc5 {[%clk 01:29:18]} {[%emt 00:02:26]}
Bxc5 {[%clk 01:30:14]} {[%emt 00:01:00]} 6. e3 {[%clk 01:29:31]} {[%emt
00:00:18]} Nc6 {[%clk 01:25:31]} {[%emt 00:05:13]} 7. Ngf3 {[%clk 01:26:45]}
{[%emt 00:03:16]} O-O {[%clk 01:25:40]} {[%emt 00:00:20]} 8. Bg5 {[%clk
01:22:04]} {[%emt 00:05:12]} h6 {[%clk 01:22:24]} {[%emt 00:03:45]} 9. Bh4
{[%clk 01:22:02]} {[%emt 00:00:32]} Be7 {[%clk 01:22:03]} {[%emt 00:00:51]} 10.
Be2 {[%clk 01:19:00]} {[%emt 00:03:32]} d5 {[%clk 01:13:13]} {[%emt 00:09:20]}
11. O-O {[%clk 01:13:00]} {[%emt 00:06:31]} d4 {[%clk 01:07:16]} {[%emt
00:06:27]} 12. exd4 {[%clk 01:12:29]} {[%emt 00:01:01]} Nxd4 {[%clk 01:07:34]}
{[%emt 00:00:11]} 13. Bg3 {[%clk 00:49:29]} {[%emt 00:23:30]} Nxe2+ {[%clk
00:53:14]} {[%emt 00:14:50]} 14. Qxe2 {[%clk 00:49:53]} {[%emt 00:00:06]} Nh5
{[%clk 00:52:54]} {[%emt 00:00:50]} 15. Be5 {[%clk 00:47:19]} {[%emt 00:03:04]}
f6 {[%clk 00:52:57]} {[%emt 00:00:27]} 16. Bc3 {[%clk 00:47:47]} {[%emt
00:00:04]} Nf4 {[%clk 00:52:19]} {[%emt 00:01:07]} 17. Qe3 {[%clk 00:45:19]}
{[%emt 00:02:59]} e5 {[%clk 00:52:30]} {[%emt 00:00:18]} 18. Rfd1 {[%clk
00:36:21]} {[%emt 00:09:29]} Qc7 {[%clk 00:44:46]} {[%emt 00:08:13]} 19. b4
{[%clk 00:32:18]} {[%emt 00:04:34]} Bf5 {[%clk 00:30:42]} {[%emt 00:14:31]} 20.
g3 {[%clk 00:21:27]} {[%emt 00:11:23]} Nh3+ {[%clk 00:30:28]} {[%emt 00:00:43]}
21. Kg2 {[%clk 00:21:52]} {[%emt 00:00:06]} Qc6 {[%clk 00:29:33]} {[%emt
00:01:23]} 22. c5 {[%clk 00:17:26]} {[%emt 00:04:59]} Rad8 {[%clk 00:28:47]}
{[%emt 00:01:15]} 23. Nc4 {[%clk 00:11:38]} {[%emt 00:06:18]} Ng5 {[%clk
00:28:28]} {[%emt 00:00:49]} 0-1

[Event "Top 12 Féminin 2026"]
[Site "Asnières-sur-Seine, France"]
[Date "2026.05.16"]
[Round "4.4"]
[White "Belenkaya, Dina"]
[Black "Bellaiche, Elise"]
[Result "1-0"]
[TimeControl "1h30 / 40 moves + 30m + 30sec/move"]
[WhiteTitle "WGM"]
[BlackTitle "WFM"]
[WhiteFideId "-"]
[BlackFideId "-"]
[WhiteElo "2186"]
[BlackElo "2020"]

1. d4 {[%clk 01:16:05]} {[%emt 00:14:54]} d5 {[%clk 01:30:42]} {[%emt
00:00:18]} 2. c4 {[%clk 01:16:27]} {[%emt 00:00:08]} e6 {[%clk 01:31:06]}
{[%emt 00:00:06]} 3. Nc3 {[%clk 01:16:50]} {[%emt 00:00:06]} Nf6 {[%clk
01:31:27]} {[%emt 00:00:09]} 4. cxd5 {[%clk 01:17:13]} {[%emt 00:00:07]} exd5
{[%clk 01:31:49]} {[%emt 00:00:09]} 5. Bg5 {[%clk 01:17:38]} {[%emt 00:00:04]}
c6 {[%clk 01:31:06]} {[%emt 00:01:14]} 6. e3 {[%clk 01:18:01]} {[%emt
00:00:06]} Be7 {[%clk 01:31:15]} {[%emt 00:00:21]} 7. Bd3 {[%clk 01:18:17]}
{[%emt 00:00:14]} O-O {[%clk 01:30:48]} {[%emt 00:00:56]} 8. Bh4 {[%clk
01:18:31]} {[%emt 00:00:17]} Nbd7 {[%clk 01:26:36]} {[%emt 00:04:43]} 9. Bg3
{[%clk 01:16:50]} {[%emt 00:02:11]} Re8 {[%clk 01:24:45]} {[%emt 00:02:21]} 10.
Qc2 {[%clk 01:14:40]} {[%emt 00:02:39]} Nf8 {[%clk 01:15:50]} {[%emt 00:09:25]}
11. Nf3 {[%clk 01:10:17]} {[%emt 00:04:52]} Bd6 {[%clk 01:12:45]} {[%emt
00:03:35]} 12. Ne5 {[%clk 01:06:22]} {[%emt 00:04:26]} Ng6 {[%clk 01:10:17]}
{[%emt 00:02:58]} 13. f4 {[%clk 01:05:52]} {[%emt 00:01:00]} c5 {[%clk
00:54:00]} {[%emt 00:16:48]} 14. O-O {[%clk 01:04:36]} {[%emt 00:01:44]} a6
{[%clk 00:44:30]} {[%emt 00:10:01]} 15. Kh1 {[%clk 00:56:01]} {[%emt 00:09:05]}
c4 {[%clk 00:40:28]} {[%emt 00:04:33]} 16. Be2 {[%clk 00:55:13]} {[%emt
00:01:17]} b5 {[%clk 00:40:13]} {[%emt 00:00:45]} 17. Bf3 {[%clk 00:51:00]}
{[%emt 00:04:41]} Bb7 {[%clk 00:40:32]} {[%emt 00:00:12]} 18. a3 {[%clk
00:50:49]} {[%emt 00:00:41]} Qb6 {[%clk 00:31:53]} {[%emt 00:09:09]} 19. h4
{[%clk 00:48:12]} {[%emt 00:03:07]} Ne7 {[%clk 00:25:12]} {[%emt 00:07:11]} 20.
h5 {[%clk 00:47:30]} {[%emt 00:01:11]} Bc8 {[%clk 00:24:36]} {[%emt 00:01:07]}
21. Bh4 {[%clk 00:46:04]} {[%emt 00:01:55]} Bc7 {[%clk 00:16:34]} {[%emt
00:08:33]} 22. Bxf6 {[%clk 00:39:19]} {[%emt 00:07:14]} Qxf6 {[%clk 00:16:59]}
{[%emt 00:00:05]} 23. Nxd5 {[%clk 00:38:21]} {[%emt 00:01:28]} Nxd5 {[%clk
00:09:21]} {[%emt 00:08:09]} 24. Bxd5 {[%clk 00:38:47]} {[%emt 00:00:04]} Be6
{[%clk 00:08:58]} {[%emt 00:00:53]} 25. Bxa8 {[%clk 00:38:55]} {[%emt
00:00:22]} Rxa8 {[%clk 00:09:28]} 26. Kg1 {[%clk 00:28:24]} {[%emt 00:11:01]}
Qh4 {[%clk 00:06:38]} {[%emt 00:03:20]} 27. f5 {[%clk 00:23:25]} {[%emt
00:05:28]} Bd5 {[%clk 00:06:22]} {[%emt 00:00:47]} 28. f6 {[%clk 00:19:46]}
{[%emt 00:04:08]} gxf6 {[%clk 00:03:16]} {[%emt 00:03:36]} 29. Rf4 {[%clk
00:19:54]} {[%emt 00:00:22]} Qxh5 {[%clk 00:02:55]} {[%emt 00:00:53]} 30. Ng4
{[%clk 00:17:07]} {[%emt 00:03:16]} Bd8 {[%clk 00:01:43]} {[%emt 00:01:42]} 31.
e4 {[%clk 00:15:20]} {[%emt 00:02:17]} Be6 {[%clk 00:00:59]} {[%emt 00:01:15]}
32. Nxf6+ {[%clk 00:15:30]} {[%emt 00:00:19]} Bxf6 {[%clk 00:01:26]} {[%emt
00:00:03]} 33. Rxf6 {[%clk 00:15:55]} {[%emt 00:00:05]} Qg5 {[%clk 00:01:08]}
{[%emt 00:00:49]} 34. Raf1 {[%clk 00:15:27]} {[%emt 00:00:58]} Qe3+ {[%clk
00:00:57]} {[%emt 00:00:41]} 35. Qf2 {[%clk 00:12:53]} {[%emt 00:03:03]} Qxe4
{[%clk 00:01:26]} {[%emt 00:00:02]} 36. Re1 {[%clk 00:12:33]} {[%emt 00:00:50]}
Qg4 {[%clk 00:01:24]} {[%emt 00:00:33]} 37. Rf4 {[%clk 00:12:44]} {[%emt
00:00:19]} Qg7 {[%clk 00:01:12]} {[%emt 00:00:42]} 38. Qf3 {[%clk 00:12:17]}
{[%emt 00:00:56]} Rd8 {[%clk 00:01:30]} {[%emt 00:00:13]} 39. Rxe6 {[%clk
00:08:04]} {[%emt 00:04:42]} fxe6 {[%clk 00:01:32]} {[%emt 00:00:28]} 40. Rg4
{[%clk 00:08:32]} {[%emt 00:00:02]} Rxd4 {[%clk 00:01:14]} {[%emt 00:00:48]} 41.
Qa8+ {[%clk 00:08:32]} {[%emt 00:00:30]} 1-0

[Event "Top 12 Féminin 2026"]
[Site "Asnières-sur-Seine, France"]
[Date "2026.05.16"]
[Round "4.5"]
[White "Batsiashvili, Nino"]
[Black "Tokhirjonova, Gulrukhbegim"]
[Result "0-1"]
[TimeControl "1h30 / 40 moves + 30m + 30sec/move"]
[WhiteTitle "GM"]
[BlackTitle "IM"]
[WhiteFideId "-"]
[BlackFideId "-"]
[WhiteElo "2475"]
[BlackElo "2335"]

1. d4 {[%clk 01:30:58]} Nf6 {[%clk 01:30:52]} {[%emt 00:00:09]} 2. c4 {[%clk
01:31:24]} {[%emt 00:00:05]} e6 {[%clk 01:31:12]} {[%emt 00:00:09]} 3. Nc3
{[%clk 01:31:46]} {[%emt 00:00:08]} Bb4 {[%clk 01:31:35]} {[%emt 00:00:07]} 4.
e3 {[%clk 01:32:12]} {[%emt 00:00:04]} O-O {[%clk 01:31:47]} {[%emt 00:00:18]}
5. a3 {[%clk 01:32:23]} {[%emt 00:00:19]} Bxc3+ {[%clk 01:30:51]} {[%emt
00:01:26]} 6. bxc3 {[%clk 01:32:50]} {[%emt 00:00:03]} Ne4 {[%clk 01:30:06]}
{[%emt 00:01:15]} 7. Bd3 {[%clk 01:29:57]} {[%emt 00:03:23]} f5 {[%clk
01:29:47]} {[%emt 00:00:49]} 8. Ne2 {[%clk 01:25:35]} {[%emt 00:04:50]} d6
{[%clk 01:27:37]} {[%emt 00:02:42]} 9. O-O {[%clk 01:23:22]} {[%emt 00:02:43]}
b6 {[%clk 01:26:06]} {[%emt 00:02:01]} 10. Qc2 {[%clk 01:09:25]} {[%emt
00:14:27]} Bb7 {[%clk 01:17:08]} {[%emt 00:09:28]} 11. f3 {[%clk 01:09:30]}
{[%emt 00:00:24]} Nf6 {[%clk 01:16:23]} {[%emt 00:01:16]} 12. Nf4 {[%clk
01:06:30]} {[%emt 00:03:30]} Qe7 {[%clk 01:11:40]} {[%emt 00:05:12]} 13. d5
{[%clk 01:06:45]} {[%emt 00:00:15]} Bc8 {[%clk 01:06:55]} {[%emt 00:05:15]} 14.
dxe6 {[%clk 01:04:17]} {[%emt 00:02:58]} Bxe6 {[%clk 01:06:57]} {[%emt
00:00:28]} 15. Nxe6 {[%clk 01:00:14]} {[%emt 00:04:32]} Qxe6 {[%clk 01:07:15]}
{[%emt 00:00:12]} 16. Bxf5 {[%clk 00:53:55]} {[%emt 00:06:49]} Qxc4 {[%clk
01:07:30]} {[%emt 00:00:15]} 17. Qa2 {[%clk 00:48:01]} {[%emt 00:06:24]} Qxa2
{[%clk 01:06:58]} {[%emt 00:01:02]} 18. Rxa2 {[%clk 00:48:30]} {[%emt
00:00:01]} Nbd7 {[%clk 01:06:56]} {[%emt 00:00:31]} 19. g4 {[%clk 00:47:41]}
{[%emt 00:01:18]} Nc5 {[%clk 01:06:16]} {[%emt 00:01:11]} 20. Rg2 {[%clk
00:42:25]} {[%emt 00:05:45]} Rae8 {[%clk 01:04:20]} {[%emt 00:02:27]} 21. Bb1
{[%clk 00:42:52]} {[%emt 00:00:03]} Kh8 {[%clk 01:03:33]} {[%emt 00:01:17]} 22.
Ba2 {[%clk 00:43:11]} {[%emt 00:00:11]} Nfd7 {[%clk 01:02:17]} {[%emt
00:01:46]} 23. Bd2 {[%clk 00:38:39]} {[%emt 00:05:03]} Ne5 {[%clk 01:01:03]}
{[%emt 00:01:43]} 24. f4 {[%clk 00:36:06]} {[%emt 00:03:03]} Ned3 {[%clk
01:01:00]} {[%emt 00:00:33]} 25. g5 {[%clk 00:32:04]} {[%emt 00:04:31]} Ne4
{[%clk 00:56:41]} {[%emt 00:04:49]} 26. Rf3 {[%clk 00:30:37]} {[%emt 00:01:56]}
g6 {[%clk 00:52:29]} {[%emt 00:04:43]} 27. h4 {[%clk 00:24:57]} {[%emt
00:06:10]} Ndc5 {[%clk 00:45:49]} {[%emt 00:07:11]} 28. Bd5 {[%clk 00:21:29]}
{[%emt 00:03:57]} b5 {[%clk 00:41:12]} {[%emt 00:05:07]} 29. Rh3 {[%clk
00:14:50]} {[%emt 00:07:08]} Rf5 {[%clk 00:34:30]} {[%emt 00:07:13]} 30. c4
{[%clk 00:13:26]} {[%emt 00:01:55]} bxc4 {[%clk 00:31:20]} {[%emt 00:03:40]} 31.
Bxc4 {[%clk 00:13:54]} {[%emt 00:00:02]} d5 {[%clk 00:30:05]} {[%emt 00:01:45]}
32. Ba2 {[%clk 00:13:56]} {[%emt 00:00:26]} h5 {[%clk 00:27:39]} {[%emt
00:02:57]} 33. Ba5 {[%clk 00:10:19]} {[%emt 00:04:07]} Ne6 {[%clk 00:23:07]}
{[%emt 00:05:02]} 34. Bb1 {[%clk 00:09:02]} {[%emt 00:01:47]} Rb8 {[%clk
00:23:09]} {[%emt 00:00:29]} 35. Bc2 {[%clk 00:09:08]} {[%emt 00:00:24]} Rb5
{[%clk 00:21:52]} {[%emt 00:01:46]} 36. Be1 {[%clk 00:09:19]} {[%emt 00:00:19]}
c5 {[%clk 00:19:15]} {[%emt 00:03:08]} 37. Rf3 {[%clk 00:08:06]} {[%emt
00:01:42]} c4 {[%clk 00:19:01]} {[%emt 00:00:45]} 38. Rf1 {[%clk 00:06:57]}
{[%emt 00:01:38]} N6c5 {[%clk 00:17:58]} {[%emt 00:01:34]} 39. Bb4 {[%clk
00:05:53]} {[%emt 00:01:33]} Nd3 {[%clk 00:16:14]} {[%emt 00:02:15]} 40. Ba4
{[%clk 00:03:59]} {[%emt 00:02:25]} Rb7 {[%clk 00:15:44]} {[%emt 00:01:00]} 41.
Bc6 {[%clk 00:00:41]} {[%emt 00:03:46]} Rc7 {[%clk 00:15:48]} {[%emt 00:00:27]}
42. Be8 {[%clk 00:25:38]} {[%emt 00:05:33]} Kh7 {[%clk 00:43:52]} {[%emt
00:02:26]} 43. Rc2 {[%clk 00:22:14]} {[%emt 00:03:54]} Nxb4 {[%clk 00:38:48]}
{[%emt 00:05:36]} 44. axb4 {[%clk 00:22:38]} {[%emt 00:00:06]} Rf8 {[%clk
00:39:10]} {[%emt 00:00:07]} 45. Ba4 {[%clk 00:22:27]} {[%emt 00:00:41]} Rb8
{[%clk 00:33:40]} {[%emt 00:06:00]} 46. f5 {[%clk 00:19:26]} {[%emt 00:03:32]}
gxf5 {[%clk 00:33:36]} {[%emt 00:00:34]} 47. Rxf5 {[%clk 00:19:50]} {[%emt
00:00:06]} Rxb4 {[%clk 00:33:46]} {[%emt 00:00:20]} 48. Be8 {[%clk 00:18:17]}
{[%emt 00:02:03]} Nd6 {[%clk 00:33:48]} {[%emt 00:00:28]} 49. Re5 {[%clk
00:16:36]} {[%emt 00:02:11]} Nxe8 {[%clk 00:33:58]} {[%emt 00:00:21]} 50. Rxe8
{[%clk 00:17:00]} {[%emt 00:00:06]} c3 {[%clk 00:34:20]} {[%emt 00:00:08]} 51.
Kf2 {[%clk 00:14:06]} {[%emt 00:03:24]} Rxh4 {[%clk 00:34:39]} {[%emt
00:00:11]} 52. Ke2 {[%clk 00:14:34]} {[%emt 00:00:02]} Rh2+ {[%clk 00:30:53]}
{[%emt 00:04:16]} 53. Kd3 {[%clk 00:15:04]} Rxc2 {[%clk 00:31:13]} {[%emt
00:00:11]} 54. Kxc2 {[%clk 00:15:32]} {[%emt 00:00:01]} Kg6 {[%clk 00:31:22]}
{[%emt 00:00:20]} 55. Re5 {[%clk 00:13:07]} {[%emt 00:02:56]} h4 {[%clk
00:31:42]} {[%emt 00:00:10]} 56. Rxd5 {[%clk 00:13:26]} {[%emt 00:00:11]} h3
{[%clk 00:32:02]} {[%emt 00:00:10]} 57. Rd8 {[%clk 00:10:19]} {[%emt 00:03:37]}
h2 {[%clk 00:31:47]} {[%emt 00:00:44]} 58. Rd1 {[%clk 00:10:18]} {[%emt
00:00:31]} Kxg5 {[%clk 00:32:12]} {[%emt 00:00:05]} 59. Rh1 {[%clk 00:10:45]}
{[%emt 00:00:03]} Rh7 {[%clk 00:32:36]} {[%emt 00:00:06]} 60. Kxc3 {[%clk
00:11:12]} {[%emt 00:00:04]} Kg4 {[%clk 00:33:02]} {[%emt 00:00:04]} 61. Kd4
{[%clk 00:09:48]} {[%emt 00:01:53]} Kg3 {[%clk 00:33:29]} {[%emt 00:00:02]} 62.
e4 {[%clk 00:10:09]} {[%emt 00:00:09]} Kg2 {[%clk 00:33:56]} {[%emt 00:00:03]}
0-1